[Event "Titled Tuesday Blitz February 22 Early 2022"]
[White "Talibov, Shiroghlan"]
[Black "Lodici, Lorenzo"]
[WhiteFideId "13429078"]
[BlackFideId "884189"]
[WhiteElo "2070"]
[BlackElo "2265"]
[Result "0-1"]
[Round "05"]
[TimeControl "180+1"]
[Date "2022.02.22"]
[WhiteClock "0:00:13"]
[BlackClock "0:00:14"]

1. c4 {[%clk 0:02:56]}  b6 {[%clk 0:02:58]} 2. Nc3 {[%clk 0:02:55]}  Bb7 {[%clk 0:02:59]} 3. e4 {[%clk 0:02:56]}  e6 {[%clk 0:02:59]} 4. g3 {[%clk 0:02:55]}  f5 {[%clk 0:02:40]} 5. Bg2 {[%clk 0:02:53]}  Nf6 {[%clk 0:02:40]} 6. d3 {[%clk 0:02:51]}  Bb4 {[%clk 0:02:35]} 7. Ne2 {[%clk 0:02:51]}  fxe4 {[%clk 0:02:32]} 8. O-O {[%clk 0:02:49]}  O-O {[%clk 0:02:31]} 9. Bg5 {[%clk 0:02:47]}  Be7 {[%clk 0:02:15]} 10. dxe4 {[%clk 0:02:44]}  e5 {[%clk 0:02:12]} 11. h3 {[%clk 0:02:39]}  Nc6 {[%clk 0:02:05]} 12. Be3 {[%clk 0:02:38]}  Bc5 {[%clk 0:02:03]} 13. Qd2 {[%clk 0:02:36]}  d6 {[%clk 0:01:54]} 14. Rad1 {[%clk 0:02:35]}  a6 {[%clk 0:01:49]} 15. Kh2 {[%clk 0:02:35]}  Ne7 {[%clk 0:01:48]} 16. f4 {[%clk 0:02:32]}  exf4 {[%clk 0:01:44]} 17. gxf4 {[%clk 0:02:30]}  Ng6 {[%clk 0:01:44]} 18. Bxc5 {[%clk 0:02:26]}  bxc5 {[%clk 0:01:43]} 19. Ng3 {[%clk 0:02:25]}  Nh4 {[%clk 0:01:40]} 20. Bh1 {[%clk 0:02:24]}  Qe8 {[%clk 0:01:38]} 21. Rde1 {[%clk 0:02:22]}  Qg6 {[%clk 0:01:27]} 22. Rg1 {[%clk 0:02:16]}  Qh6 {[%clk 0:01:27]} 23. Nf5 {[%clk 0:01:47]}  Nxf5 {[%clk 0:01:25]} 24. exf5 {[%clk 0:01:48]}  Bxh1 {[%clk 0:01:22]} 25. Rxh1 {[%clk 0:01:48]}  Rae8 {[%clk 0:01:19]} 26. Rhg1 {[%clk 0:01:39]}  Qh4 {[%clk 0:01:16]} 27. Rxe8 {[%clk 0:01:30]}  Rxe8 {[%clk 0:01:17]} 28. Rg2 {[%clk 0:01:26]}  Qe1 {[%clk 0:01:09]} 29. Qd3 {[%clk 0:01:06]}  Re3 {[%clk 0:00:57]} 30. Qd2 {[%clk 0:01:03]}  Ng4+ {[%clk 0:00:42]} 31. hxg4 {[%clk 0:01:04]}  Qh4+ {[%clk 0:00:42]} 32. Kg1 {[%clk 0:01:03]}  Re1+ {[%clk 0:00:43]} 33. Qxe1 {[%clk 0:01:04]}  Qxe1+ {[%clk 0:00:43]} 34. Kh2 {[%clk 0:01:04]}  Qh4+ {[%clk 0:00:41]} 35. Kg1 {[%clk 0:01:04]}  Qe1+ {[%clk 0:00:42]} 36. Kh2 {[%clk 0:01:04]}  Qc1 {[%clk 0:00:31]} 37. Rf2 {[%clk 0:01:02]}  c6 {[%clk 0:00:30]} 38. Kg2 {[%clk 0:01:00]}  Qe3 {[%clk 0:00:30]} 39. Ne2 {[%clk 0:00:54]}  d5 {[%clk 0:00:29]} 40. Ng3 {[%clk 0:00:47]}  d4 {[%clk 0:00:21]} 41. Nf1 {[%clk 0:00:32]}  Qe4+ {[%clk 0:00:21]} 42. Kh2 {[%clk 0:00:30]}  d3 {[%clk 0:00:21]} 43. b3 {[%clk 0:00:27]}  Qe2 {[%clk 0:00:16]} 44. Kg2 {[%clk 0:00:27]}  Qxg4+ {[%clk 0:00:16]} 45. Ng3 {[%clk 0:00:25]}  h5 {[%clk 0:00:16]} 46. Kh2 {[%clk 0:00:21]}  h4 {[%clk 0:00:17]} 47. Nf1 {[%clk 0:00:21]}  Qxf5 {[%clk 0:00:17]} 48. Rf3 {[%clk 0:00:19]}  Qe4 {[%clk 0:00:16]} 49. Kg2 {[%clk 0:00:17]}  h3+ {[%clk 0:00:14]} 50. Kf2 {[%clk 0:00:16]}  h2 {[%clk 0:00:14]} 51. Nxh2 {[%clk 0:00:15]}  d2 {[%clk 0:00:13]} 52. Re3 {[%clk 0:00:13]}  Qxf4+ {[%clk 0:00:14]} 53. Ke2 {[%clk 0:00:13]}  Qxe3+ {[%clk 0:00:14]} 0-1


[Site "https://www.chess.com"]

[Event "Titled Tuesday Blitz February 22 Early 2022"]
[White "Topalov, Aleksandar"]
[Black "Piliczewski, Bogusz"]
[WhiteFideId "925659"]
[BlackFideId "1104144"]
[WhiteElo "2098"]
[BlackElo "1896"]
[Result "1-0"]
[Round "05"]
[TimeControl "180+1"]
[Date "2022.02.22"]
[WhiteClock "0:00:51"]
[BlackClock "0:00:02"]

1. b3 {[%clk 0:02:52]}  d5 {[%clk 0:02:58]} 2. Bb2 {[%clk 0:02:52]}  Bf5 {[%clk 0:02:58]} 3. Nf3 {[%clk 0:02:51]}  e6 {[%clk 0:02:59]} 4. g3 {[%clk 0:02:51]}  Nf6 {[%clk 0:02:59]} 5. Bg2 {[%clk 0:02:52]}  Be7 {[%clk 0:02:59]} 6. O-O {[%clk 0:02:52]}  Nbd7 {[%clk 0:03:00]} 7. d3 {[%clk 0:02:52]}  c6 {[%clk 0:03:00]} 8. Nbd2 {[%clk 0:02:50]}  h6 {[%clk 0:02:59]} 9. e4 {[%clk 0:02:50]}  Bh7 {[%clk 0:02:59]} 10. Qe2 {[%clk 0:02:50]}  O-O {[%clk 0:02:58]} 11. Kh1 {[%clk 0:02:48]}  Qb6 {[%clk 0:02:32]} 12. Ng1 {[%clk 0:02:45]}  Rfd8 {[%clk 0:02:24]} 13. f4 {[%clk 0:02:43]}  Rac8 {[%clk 0:02:08]} 14. f5 {[%clk 0:02:43]}  exf5 {[%clk 0:01:58]} 15. exd5 {[%clk 0:02:43]}  Bb4 {[%clk 0:01:43]} 16. dxc6 {[%clk 0:02:35]}  bxc6 {[%clk 0:01:39]} 17. Nc4 {[%clk 0:02:35]}  Qb8 {[%clk 0:01:25]} 18. a3 {[%clk 0:02:32]}  Bf8 {[%clk 0:01:21]} 19. Rae1 {[%clk 0:02:24]}  Re8 {[%clk 0:01:20]} 20. Qf3 {[%clk 0:02:22]}  Rxe1 {[%clk 0:01:13]} 21. Rxe1 {[%clk 0:02:21]}  c5 {[%clk 0:01:13]} 22. Bh3 {[%clk 0:02:10]}  g6 {[%clk 0:01:11]} 23. Bg2 {[%clk 0:01:46]}  Re8 {[%clk 0:01:11]} 24. Rxe8 {[%clk 0:01:43]}  Qxe8 {[%clk 0:01:10]} 25. Qe2 {[%clk 0:01:43]}  Qxe2 {[%clk 0:01:09]} 26. Nxe2 {[%clk 0:01:43]}  Bg7 {[%clk 0:00:58]} 27. Nf4 {[%clk 0:01:39]}  Ng4 {[%clk 0:00:56]} 28. Bxg7 {[%clk 0:01:38]}  Kxg7 {[%clk 0:00:54]} 29. h3 {[%clk 0:01:36]}  Nge5 {[%clk 0:00:51]} 30. Nxe5 {[%clk 0:01:30]}  Nxe5 {[%clk 0:00:51]} 31. Nd5 {[%clk 0:01:25]}  g5 {[%clk 0:00:47]} 32. Kg1 {[%clk 0:01:22]}  f6 {[%clk 0:00:43]} 33. Kf2 {[%clk 0:01:20]}  Bg8 {[%clk 0:00:43]} 34. Nc3 {[%clk 0:01:19]}  Kf8 {[%clk 0:00:33]} 35. Na4 {[%clk 0:01:19]}  c4 {[%clk 0:00:26]} 36. bxc4 {[%clk 0:01:15]}  Ke7 {[%clk 0:00:23]} 37. Nc3 {[%clk 0:01:15]}  Kd6 {[%clk 0:00:20]} 38. Ke3 {[%clk 0:01:11]}  a6 {[%clk 0:00:18]} 39. Kd4 {[%clk 0:01:09]}  Nc6+ {[%clk 0:00:16]} 40. Bxc6 {[%clk 0:01:06]}  Kxc6 {[%clk 0:00:16]} 41. Nd5 {[%clk 0:01:03]}  Bxd5 {[%clk 0:00:14]} 42. cxd5+ {[%clk 0:01:04]}  Kd6 {[%clk 0:00:14]} 43. c4 {[%clk 0:01:04]}  h5 {[%clk 0:00:09]} 44. c5+ {[%clk 0:01:04]}  Kd7 {[%clk 0:00:09]} 45. Ke3 {[%clk 0:00:54]}  h4 {[%clk 0:00:02]} 46. gxh4 {[%clk 0:00:53]}  f4+ {[%clk 0:00:02]} 47. Kf3 {[%clk 0:00:51]} 1-0


[Site "https://www.chess.com"]

[Event "Titled Tuesday Blitz February 22 Early 2022"]
[White "Tymrakiewicz, Rafal"]
[Black "Sargsyan, Anna M."]
[WhiteFideId "1108832"]
[BlackFideId "13308130"]
[WhiteElo "2205"]
[BlackElo "2271"]
[Result "1-0"]
[Round "05"]
[TimeControl "180+1"]
[Date "2022.02.22"]
[WhiteClock "0:00:03"]
[BlackClock "0:00:15"]

1. e4 {[%clk 0:02:58]}  c6 {[%clk 0:02:55]} 2. d4 {[%clk 0:02:58]}  d5 {[%clk 0:02:55]} 3. exd5 {[%clk 0:02:58]}  cxd5 {[%clk 0:02:54]} 4. c4 {[%clk 0:02:59]}  Nf6 {[%clk 0:02:54]} 5. Nc3 {[%clk 0:02:59]}  Nc6 {[%clk 0:02:55]} 6. Bg5 {[%clk 0:02:58]}  Be6 {[%clk 0:02:55]} 7. c5 {[%clk 0:02:53]}  Qa5 {[%clk 0:02:55]} 8. Nf3 {[%clk 0:02:41]}  Ne4 {[%clk 0:02:54]} 9. Bd2 {[%clk 0:02:41]}  Qc7 {[%clk 0:02:46]} 10. Bb5 {[%clk 0:02:19]}  Nxc3 {[%clk 0:02:44]} 11. Bxc3 {[%clk 0:02:13]}  g6 {[%clk 0:02:45]} 12. b4 {[%clk 0:02:10]}  Bg7 {[%clk 0:02:46]} 13. O-O {[%clk 0:02:08]}  O-O {[%clk 0:02:46]} 14. Be2 {[%clk 0:02:08]}  a6 {[%clk 0:02:44]} 15. a4 {[%clk 0:02:06]}  Bg4 {[%clk 0:02:39]} 16. h3 {[%clk 0:02:04]}  Bxf3 {[%clk 0:02:39]} 17. Bxf3 {[%clk 0:02:05]}  e6 {[%clk 0:02:27]} 18. Qd2 {[%clk 0:02:01]}  Ne7 {[%clk 0:02:25]} 19. b5 {[%clk 0:01:56]}  Nf5 {[%clk 0:02:22]} 20. Rfd1 {[%clk 0:01:48]}  h5 {[%clk 0:02:22]} 21. Be2 {[%clk 0:01:41]}  Rfd8 {[%clk 0:02:15]} 22. Rab1 {[%clk 0:01:37]}  Rdc8 {[%clk 0:02:13]} 23. bxa6 {[%clk 0:01:23]}  bxa6 {[%clk 0:02:13]} 24. Rb6 {[%clk 0:01:22]}  e5 {[%clk 0:02:00]} 25. Bxa6 {[%clk 0:01:08]}  exd4 {[%clk 0:01:59]} 26. Bb4 {[%clk 0:00:57]}  Re8 {[%clk 0:01:51]} 27. Bb5 {[%clk 0:00:53]}  Re7 {[%clk 0:01:43]} 28. a5 {[%clk 0:00:52]}  Bh6 {[%clk 0:01:38]} 29. Qd3 {[%clk 0:00:49]}  Re4 {[%clk 0:01:25]} 30. a6 {[%clk 0:00:45]}  Bf4 {[%clk 0:01:16]} 31. Rb7 {[%clk 0:00:45]}  Qe5 {[%clk 0:01:05]} 32. c6 {[%clk 0:00:41]}  Ne3 {[%clk 0:00:49]} 33. fxe3 {[%clk 0:00:38]}  Rxe3 {[%clk 0:00:49]} 34. Qf1 {[%clk 0:00:23]}  d3 {[%clk 0:00:45]} 35. a7 {[%clk 0:00:16]}  d4 {[%clk 0:00:40]} 36. Bxd3 {[%clk 0:00:13]}  g5 {[%clk 0:00:30]} 37. c7 {[%clk 0:00:13]}  Kg7 {[%clk 0:00:28]} 38. Rb8 {[%clk 0:00:13]}  Qxc7 {[%clk 0:00:25]} 39. Rxa8 {[%clk 0:00:13]}  Qb7 {[%clk 0:00:25]} 40. Rb8 {[%clk 0:00:12]}  Qxa7 {[%clk 0:00:20]} 41. Rd8 {[%clk 0:00:09]}  Qb6 {[%clk 0:00:19]} 42. Be7 {[%clk 0:00:08]}  Rxe7 {[%clk 0:00:18]} 43. Rd5 {[%clk 0:00:08]}  Qc6 {[%clk 0:00:15]} 44. Rf5 {[%clk 0:00:08]}  Qe6 {[%clk 0:00:13]} 45. Rxf4 {[%clk 0:00:07]}  gxf4 {[%clk 0:00:13]} 46. Qxf4 {[%clk 0:00:07]}  Qe3+ {[%clk 0:00:13]} 47. Qxe3 {[%clk 0:00:08]}  dxe3 {[%clk 0:00:14]} 48. Be2 {[%clk 0:00:07]}  Kh6 {[%clk 0:00:14]} 49. g3 {[%clk 0:00:08]}  Kg5 {[%clk 0:00:12]} 50. Kg2 {[%clk 0:00:08]}  f5 {[%clk 0:00:13]} 51. Kf3 {[%clk 0:00:08]}  h4 {[%clk 0:00:12]} 52. Rd5 {[%clk 0:00:06]}  hxg3 {[%clk 0:00:12]} 53. Kxg3 {[%clk 0:00:07]}  Re4 {[%clk 0:00:11]} 54. Bf3 {[%clk 0:00:06]}  Re7 {[%clk 0:00:11]} 55. Be2 {[%clk 0:00:06]}  Kf6 {[%clk 0:00:11]} 56. h4 {[%clk 0:00:06]}  Re4 {[%clk 0:00:12]} 57. h5 {[%clk 0:00:05]}  Rb4 {[%clk 0:00:12]} 58. Kf3 {[%clk 0:00:05]}  Rh4 {[%clk 0:00:12]} 59. Kxe3 {[%clk 0:00:05]}  Kg5 {[%clk 0:00:12]} 60. Bf3 {[%clk 0:00:05]}  Rh3 {[%clk 0:00:13]} 61. Kf2 {[%clk 0:00:05]}  Rh4 {[%clk 0:00:14]} 62. Kg2 {[%clk 0:00:05]}  Kf4 {[%clk 0:00:14]} 63. Rd3 {[%clk 0:00:03]}  Kg5 {[%clk 0:00:14]} 64. Kg3 {[%clk 0:00:03]}  Ra4 {[%clk 0:00:14]} 65. Rd6 {[%clk 0:00:03]}  Ra7 {[%clk 0:00:15]} 66. Rg6# {[%clk 0:00:03]} 1-0


[Site "https://www.chess.com"]

[Event "Titled Tuesday Blitz February 22 Early 2022"]
[White "Vitiugov, Nikita"]
[Black "Vlassov, Nikolai"]
[WhiteFideId "4152956"]
[BlackFideId "4103360"]
[WhiteElo "2673"]
[BlackElo "2407"]
[Result "0-1"]
[Round "05"]
[TimeControl "180+1"]
[Date "2022.02.22"]
[WhiteClock "0:00:02"]
[BlackClock "0:00:06"]

1. d4 {[%clk 0:03:00]}  Nf6 {[%clk 0:02:59]} 2. Bg5 {[%clk 0:03:00]}  e6 {[%clk 0:02:59]} 3. e4 {[%clk 0:02:58]}  h6 {[%clk 0:02:59]} 4. Bxf6 {[%clk 0:02:58]}  Qxf6 {[%clk 0:03:00]} 5. Nc3 {[%clk 0:02:57]}  Bb4 {[%clk 0:02:59]} 6. a3 {[%clk 0:02:53]}  Bxc3+ {[%clk 0:02:59]} 7. bxc3 {[%clk 0:02:54]}  d6 {[%clk 0:02:58]} 8. Qd2 {[%clk 0:02:53]}  O-O {[%clk 0:02:57]} 9. Bd3 {[%clk 0:02:50]}  e5 {[%clk 0:02:56]} 10. Ne2 {[%clk 0:02:50]}  Nc6 {[%clk 0:02:56]} 11. Qe3 {[%clk 0:02:45]}  Qg5 {[%clk 0:02:50]} 12. Qxg5 {[%clk 0:02:39]}  hxg5 {[%clk 0:02:50]} 13. Kd2 {[%clk 0:02:37]}  g4 {[%clk 0:02:39]} 14. Rab1 {[%clk 0:02:34]}  b6 {[%clk 0:02:36]} 15. Bb5 {[%clk 0:02:17]}  Ne7 {[%clk 0:02:25]} 16. Ng3 {[%clk 0:02:16]}  g6 {[%clk 0:02:20]} 17. h4 {[%clk 0:02:02]}  f5 {[%clk 0:01:54]} 18. Bc4+ {[%clk 0:01:44]}  Kg7 {[%clk 0:01:54]} 19. h5 {[%clk 0:01:28]}  f4 {[%clk 0:01:51]} 20. Ne2 {[%clk 0:01:28]}  g5 {[%clk 0:01:38]} 21. Nc1 {[%clk 0:01:22]}  Nc6 {[%clk 0:01:28]} 22. Bd5 {[%clk 0:01:18]}  Bb7 {[%clk 0:01:29]} 23. Nd3 {[%clk 0:01:13]}  Rae8 {[%clk 0:01:28]} 24. h6+ {[%clk 0:01:05]}  Kg6 {[%clk 0:01:23]} 25. h7 {[%clk 0:01:04]}  Rh8 {[%clk 0:01:23]} 26. Bg8 {[%clk 0:00:54]}  exd4 {[%clk 0:01:16]} 27. Rb5 {[%clk 0:00:48]}  dxc3+ {[%clk 0:01:11]} 28. Kxc3 {[%clk 0:00:48]}  Rxe4 {[%clk 0:01:06]} 29. f3 {[%clk 0:00:31]}  Re3 {[%clk 0:00:55]} 30. fxg4 {[%clk 0:00:30]}  Ne5 {[%clk 0:00:48]} 31. Kd2 {[%clk 0:00:10]}  Bxg2 {[%clk 0:00:44]} 32. Nxe5+ {[%clk 0:00:07]}  Rxe5 {[%clk 0:00:39]} 33. Rxe5 {[%clk 0:00:05]}  dxe5 {[%clk 0:00:39]} 34. Re1 {[%clk 0:00:05]}  e4 {[%clk 0:00:37]} 35. Ke2 {[%clk 0:00:06]}  e3 {[%clk 0:00:36]} 36. Rd1 {[%clk 0:00:05]}  Be4 {[%clk 0:00:24]} 37. Rd8 {[%clk 0:00:05]}  Kf6 {[%clk 0:00:14]} 38. Rd7 {[%clk 0:00:03]}  c5 {[%clk 0:00:08]} 39. Rf7+ {[%clk 0:00:03]}  Kg6 {[%clk 0:00:07]} 40. Rxa7 {[%clk 0:00:03]}  Bxc2 {[%clk 0:00:06]} 41. Rb7 {[%clk 0:00:03]}  c4 {[%clk 0:00:03]} 42. Rxb6+ {[%clk 0:00:03]}  Kg7 {[%clk 0:00:03]} 43. Rb7+ {[%clk 0:00:03]}  Kf6 {[%clk 0:00:03]} 44. Rb6+ {[%clk 0:00:04]}  Ke5 {[%clk 0:00:03]} 45. Rc6 {[%clk 0:00:02]}  Bd3+ {[%clk 0:00:03]} 46. Ke1 {[%clk 0:00:01]}  f3 {[%clk 0:00:03]} 47. Rc5+ {[%clk 0:00:01]}  Kd4 {[%clk 0:00:03]} 48. Rd5+ {[%clk 0:00:01]}  Kc3 {[%clk 0:00:04]} 49. Rf5 {[%clk 0:00:01]}  Bxf5 {[%clk 0:00:03]} 50. gxf5 {[%clk 0:00:01]}  Kd3 {[%clk 0:00:03]} 51. f6 {[%clk 0:00:01]}  f2+ {[%clk 0:00:03]} 52. Kf1 {[%clk 0:00:01]}  e2+ {[%clk 0:00:03]} 53. Kxf2 {[%clk 0:00:01]}  Kd2 {[%clk 0:00:04]} 54. f7 {[%clk 0:00:01]}  e1=Q+ {[%clk 0:00:05]} 55. Kf3 {[%clk 0:00:02]}  Qe7 {[%clk 0:00:05]} 56. Kg4 {[%clk 0:00:01]}  c3 {[%clk 0:00:05]} 57. Kf5 {[%clk 0:00:01]}  c2 {[%clk 0:00:05]} 58. Kg6 {[%clk 0:00:02]}  Qf8 {[%clk 0:00:06]} 0-1


[Site "https://www.chess.com"]

[Event "Titled Tuesday Blitz February 22 Early 2022"]
[White "Vokhidov, Shamsiddin"]
[Black "Ponkratov, Pavel"]
[WhiteFideId "14204223"]
[BlackFideId "4157800"]
[WhiteElo "2611"]
[BlackElo "2487"]
[Result "1-0"]
[Round "05"]
[TimeControl "180+1"]
[Date "2022.02.22"]
[WhiteClock "0:00:21"]
[BlackClock "0:00:13"]

1. e4 {[%clk 0:02:49]}  c5 {[%clk 0:02:55]} 2. Nf3 {[%clk 0:02:49]}  b6 {[%clk 0:02:56]} 3. d4 {[%clk 0:02:49]}  cxd4 {[%clk 0:02:56]} 4. Nxd4 {[%clk 0:02:50]}  Bb7 {[%clk 0:02:56]} 5. Nc3 {[%clk 0:02:50]}  a6 {[%clk 0:02:57]} 6. Bg5 {[%clk 0:02:50]}  Qc7 {[%clk 0:02:54]} 7. Nd5 {[%clk 0:02:49]}  Bxd5 {[%clk 0:02:50]} 8. exd5 {[%clk 0:02:50]}  Qe5+ {[%clk 0:02:50]} 9. Be3 {[%clk 0:02:50]}  Nf6 {[%clk 0:02:50]} 10. c4 {[%clk 0:02:49]}  e6 {[%clk 0:02:50]} 11. a3 {[%clk 0:02:29]}  exd5 {[%clk 0:02:36]} 12. Be2 {[%clk 0:02:21]}  Nc6 {[%clk 0:02:27]} 13. Nxc6 {[%clk 0:02:15]}  dxc6 {[%clk 0:02:27]} 14. Bd4 {[%clk 0:02:13]}  Qg5 {[%clk 0:02:08]} 15. cxd5 {[%clk 0:01:51]}  Nxd5 {[%clk 0:02:02]} 16. Qc2 {[%clk 0:01:42]}  Qg6 {[%clk 0:01:38]} 17. Bd3 {[%clk 0:01:39]}  Qe6+ {[%clk 0:01:37]} 18. Kf1 {[%clk 0:01:39]}  Be7 {[%clk 0:01:24]} 19. Re1 {[%clk 0:01:33]}  Qd6 {[%clk 0:01:17]} 20. Bxg7 {[%clk 0:01:28]}  Rg8 {[%clk 0:01:17]} 21. Be5 {[%clk 0:01:27]}  Qh6 {[%clk 0:01:17]} 22. Bxh7 {[%clk 0:01:16]}  Rg5 {[%clk 0:01:15]} 23. h4 {[%clk 0:01:06]}  Rh5 {[%clk 0:01:07]} 24. Bg7 {[%clk 0:00:43]}  Qd6 {[%clk 0:00:50]} 25. g4 {[%clk 0:00:43]}  Rxh7 {[%clk 0:00:29]} 26. Qxh7 {[%clk 0:00:44]}  O-O-O {[%clk 0:00:29]} 27. Qf5+ {[%clk 0:00:44]}  Kb7 {[%clk 0:00:28]} 28. h5 {[%clk 0:00:44]}  Qc5 {[%clk 0:00:18]} 29. h6 {[%clk 0:00:39]}  Qc4+ {[%clk 0:00:18]} 30. Kg1 {[%clk 0:00:39]}  Bc5 {[%clk 0:00:15]} 31. h7 {[%clk 0:00:36]}  Nf4 {[%clk 0:00:15]} 32. h8=Q {[%clk 0:00:29]}  Rxh8 {[%clk 0:00:15]} 33. Rxh8 {[%clk 0:00:30]}  Bxf2+ {[%clk 0:00:13]} 34. Kh1 {[%clk 0:00:23]}  Nd3 {[%clk 0:00:13]} 35. Re7# {[%clk 0:00:21]} 1-0


[Site "https://www.chess.com"]

[Event "Titled Tuesday Blitz February 22 Early 2022"]
[White "Vovk, Orest"]
[Black "wisdomboy"]
[WhiteFideId "14113490"]
[WhiteElo "2203"]
[BlackElo "2446"]
[Result "1-0"]
[Round "05"]
[TimeControl "180+1"]
[Date "2022.02.22"]
[WhiteClock "0:00:57"]
[BlackClock "0:01:44"]

1. h4 {[%clk 0:02:27]}  Nf6 {[%clk 0:02:57]} 2. h5 {[%clk 0:02:28]}  d5 {[%clk 0:02:54]} 3. d3 {[%clk 0:01:29]}  e5 {[%clk 0:02:46]} 4. h6 {[%clk 0:01:27]}  g6 {[%clk 0:02:45]} 5. Nc3 {[%clk 0:01:26]}  Be6 {[%clk 0:02:45]} 6. e4 {[%clk 0:01:26]}  c6 {[%clk 0:02:43]} 7. Bg5 {[%clk 0:01:25]}  Be7 {[%clk 0:02:43]} 8. Nf3 {[%clk 0:01:26]}  Nbd7 {[%clk 0:02:43]} 9. Be2 {[%clk 0:01:23]}  Qb6 {[%clk 0:02:38]} 10. Qc1 {[%clk 0:01:21]}  O-O-O {[%clk 0:02:36]} 11. O-O {[%clk 0:01:19]}  Ng8 {[%clk 0:02:30]} 12. Bxe7 {[%clk 0:01:18]}  Nxe7 {[%clk 0:02:30]} 13. Ng5 {[%clk 0:01:17]}  Kb8 {[%clk 0:02:27]} 14. Nxe6 {[%clk 0:01:17]}  fxe6 {[%clk 0:02:28]} 15. Bg4 {[%clk 0:01:17]}  c5 {[%clk 0:02:21]} 16. Qg5 {[%clk 0:01:10]}  Rde8 {[%clk 0:02:18]} 17. exd5 {[%clk 0:01:07]}  Qxb2 {[%clk 0:02:14]} 18. dxe6 {[%clk 0:01:04]}  Nb6 {[%clk 0:02:03]} 19. Qxe5+ {[%clk 0:01:02]}  Ka8 {[%clk 0:02:03]} 20. Rab1 {[%clk 0:00:59]}  Qa3 {[%clk 0:01:58]} 21. Nb5 {[%clk 0:00:58]}  Qa4 {[%clk 0:01:43]} 22. Nc7+ {[%clk 0:00:57]}  Kb8 {[%clk 0:01:44]} 23. Na6+ {[%clk 0:00:57]} 1-0


[Site "https://www.chess.com"]

[Event "Titled Tuesday Blitz February 22 Early 2022"]
[White "Wagner, Dennis"]
[Black "Moksh Amit Doshi"]
[WhiteFideId "24650684"]
[BlackFideId "25064967"]
[WhiteElo "2355"]
[BlackElo "2245"]
[Result "0-1"]
[Round "05"]
[TimeControl "180+1"]
[Date "2022.02.22"]
[WhiteClock "0:00:01"]
[BlackClock "0:00:25"]

1. Nf3 {[%clk 0:02:36]}  d5 {[%clk 0:02:58]} 2. g3 {[%clk 0:02:35]}  g6 {[%clk 0:02:58]} 3. Bg2 {[%clk 0:02:34]}  Bg7 {[%clk 0:02:59]} 4. O-O {[%clk 0:02:34]}  Nf6 {[%clk 0:02:58]} 5. c4 {[%clk 0:02:28]}  c6 {[%clk 0:02:54]} 6. b3 {[%clk 0:02:24]}  O-O {[%clk 0:02:51]} 7. Bb2 {[%clk 0:02:23]}  Bf5 {[%clk 0:02:31]} 8. d3 {[%clk 0:02:22]}  Nbd7 {[%clk 0:02:31]} 9. h3 {[%clk 0:02:20]}  Re8 {[%clk 0:02:29]} 10. Nd4 {[%clk 0:02:13]}  e6 {[%clk 0:02:09]} 11. Qd2 {[%clk 0:01:42]}  dxc4 {[%clk 0:02:03]} 12. bxc4 {[%clk 0:01:40]}  Nc5 {[%clk 0:01:58]} 13. g4 {[%clk 0:01:22]}  Bxg4 {[%clk 0:01:29]} 14. hxg4 {[%clk 0:01:20]}  Nxg4 {[%clk 0:01:30]} 15. Nf3 {[%clk 0:01:19]}  e5 {[%clk 0:01:30]} 16. Nc3 {[%clk 0:01:04]}  Qc7 {[%clk 0:01:23]} 17. Bh3 {[%clk 0:00:41]}  h5 {[%clk 0:01:20]} 18. Rab1 {[%clk 0:00:36]}  Rad8 {[%clk 0:01:19]} 19. Qg5 {[%clk 0:00:32]}  Ne6 {[%clk 0:01:16]} 20. Qh4 {[%clk 0:00:30]}  f5 {[%clk 0:01:02]} 21. Bxg4 {[%clk 0:00:13]}  fxg4 {[%clk 0:00:57]} 22. Ng5 {[%clk 0:00:13]}  Qe7 {[%clk 0:00:50]} 23. Nce4 {[%clk 0:00:13]}  Bh6 {[%clk 0:00:47]} 24. Bc1 {[%clk 0:00:13]}  Nd4 {[%clk 0:00:41]} 25. Re1 {[%clk 0:00:11]}  Nc2 {[%clk 0:00:39]} 26. Rd1 {[%clk 0:00:10]}  Nd4 {[%clk 0:00:40]} 27. Kf1 {[%clk 0:00:09]}  Rf8 {[%clk 0:00:38]} 28. Be3 {[%clk 0:00:08]}  Nf5 {[%clk 0:00:38]} 29. Qh1 {[%clk 0:00:03]}  Nxe3+ {[%clk 0:00:37]} 30. Kg1 {[%clk 0:00:03]}  Bxg5 {[%clk 0:00:37]} 31. Nxg5 {[%clk 0:00:02]}  Qxg5 {[%clk 0:00:36]} 32. Rxb7 {[%clk 0:00:01]}  Qf4 {[%clk 0:00:25]} 0-1


[Site "https://www.chess.com"]

[Event "Titled Tuesday Blitz February 22 Early 2022"]
[White "Wartiovaara, Oliver"]
[Black "Zheenbekov, Nurgazy"]
[WhiteFideId "513024"]
[BlackFideId "13800485"]
[WhiteElo "1971"]
[BlackElo "1959"]
[Result "0-1"]
[Round "05"]
[TimeControl "180+1"]
[Date "2022.02.22"]
[WhiteClock "0:01:13"]
[BlackClock "0:02:08"]

1. e4 {[%clk 0:03:00]}  e5 {[%clk 0:02:59]} 2. Nf3 {[%clk 0:02:58]}  Nc6 {[%clk 0:02:59]} 3. Bc4 {[%clk 0:02:54]}  Nf6 {[%clk 0:02:58]} 4. d3 {[%clk 0:02:53]}  Be7 {[%clk 0:02:58]} 5. Nc3 {[%clk 0:02:51]}  O-O {[%clk 0:02:58]} 6. O-O {[%clk 0:02:50]}  d6 {[%clk 0:02:58]} 7. a4 {[%clk 0:02:49]}  Bg4 {[%clk 0:02:49]} 8. h3 {[%clk 0:02:36]}  Bh5 {[%clk 0:02:49]} 9. Be3 {[%clk 0:02:14]}  Kh8 {[%clk 0:02:33]} 10. g4 {[%clk 0:01:58]}  Nxg4 {[%clk 0:02:31]} 11. hxg4 {[%clk 0:01:50]}  Bxg4 {[%clk 0:02:31]} 12. Kg2 {[%clk 0:01:32]}  f5 {[%clk 0:02:24]} 13. Bd5 {[%clk 0:01:29]}  f4 {[%clk 0:02:18]} 14. Bxc6 {[%clk 0:01:24]}  fxe3 {[%clk 0:02:15]} 15. fxe3 {[%clk 0:01:25]}  bxc6 {[%clk 0:02:13]} 16. Rf2 {[%clk 0:01:14]}  Qe8 {[%clk 0:02:12]} 17. Qh1 {[%clk 0:01:13]}  Qg6 {[%clk 0:02:09]} 18. Kf1 {[%clk 0:01:12]}  Bxf3 {[%clk 0:02:08]} 19. Rxf3 {[%clk 0:01:13]}  Rxf3+ {[%clk 0:02:08]} 0-1


[Site "https://www.chess.com"]